bitfinex/quotes_BTCUSD_20241025
["timestamp","ask_amount","ask_price","bid_price","bid_amount"]
[1729873380786,0.005,67761.0,67754.0,0.295182]
[1729873381006,0.005,67761.0,67757.0,0.147585]
[1729873381262,0.005,67761.0,67746.0,0.1]
[1729873381263,0.00482236,67757.0,67746.0,0.1]
[1729873381470,0.00482236,67757.0,67751.0,0.147597]
[1729873381700,0.00482236,67757.0,67752.0,0.1549811]
[1729873381969,0.22116228,67760.0,67747.0,0.0110431]
[1729873381970,0.39308748,67753.0,67747.0,0.0110431]
[1729873382183,0.00482236,67748.0,67747.0,0.0110431]
[1729873382412,0.1769252,67748.0,67747.0,0.0110431]
[1729873382830,0.3245302,67748.0,67747.0,0.0110431]
[1729873383035,0.78574276,67748.0,67747.0,0.0110431]
[1729873383259,0.89354276,67748.0,67747.0,0.0110431]
[1729873383498,0.77493401,67748.0,67747.0,0.0110431]
[1729873383743,0.77993401,67748.0,67747.0,0.0110431]
[1729873383936,0.77493401,67748.0,67747.0,0.0110431]
[1729873384160,0.74711165,67748.0,67747.0,0.0110431]
[1729873384376,0.75193401,67748.0,67747.0,0.0110431]
[1729873384584,0.74711165,67748.0,67747.0,0.0110431]
[1729873384821,0.60432901,67748.0,67729.0,0.295294]
[1729873385113,0.17210284,67738.0,67732.0,0.14764]
[1729873385332,0.16710284,67738.0,67734.0,0.147635]
[1729873385563,0.16710284,67738.0,67732.0,0.147639]
[1729873385765,0.00482236,67735.0,67733.0,0.0046164]
[1729873385969,0.00482236,67735.0,67729.0,0.295294]
[1729873386175,0.00482236,67735.0,67732.0,0.14764]
[1729873386406,0.00482236,67732.0,67726.0,0.295307]
[1729873386616,0.00482236,67730.0,67727.0,0.0120028]
[1729873386817,0.00482236,67730.0,67729.0,0.147647]
[1729873387019,0.00482236,67736.0,67733.0,0.147638]
[1729873387451,0.00482236,67736.0,67735.0,0.147634]
[1729873387730,0.005,67738.0,67737.0,0.147629]
[1729873387945,0.00982236,67743.0,67742.0,0.147618]
[1729873388157,0.00982236,67743.0,67730.0,0.00738646]
[1729873388158,0.005,67738.0,67730.0,0.00738646]
[1729873388368,0.005,67738.0,67723.0,0.00517764]
[1729873388369,0.00482236,67736.0,67731.0,0.00461616]
[1729873388573,0.00482236,67736.0,67732.0,0.00461616]
[1729873388779,0.00482236,67736.0,67733.0,0.147637]
[1729873389198,0.00482236,67736.0,67726.0,0.00738646]
[1729873389199,0.00482236,67736.0,67731.0,0.147641]
[1729873389202,0.00482236,67736.0,67732.0,0.147639]
[1729873389414,0.00482236,67736.0,67722.0,0.08297764]
[1729873389620,0.16710284,67727.0,67723.0,0.00461663]
[1729873389820,0.16710284,67727.0,67724.0,0.00461663]
[1729873390025,0.00482236,67725.0,67717.0,0.00738673]
[1729873390234,0.00482236,67725.0,67718.0,0.1522858]
[1729873390451,0.00482236,67725.0,67714.0,0.000824]
[1729873390452,0.00482236,67725.0,67719.0,0.0046168]
[1729873390661,0.00482236,67725.0,67719.0,0.147667]
[1729873390866,0.00482236,67720.0,67714.0,0.000824]
[1729873391090,0.22116228,67719.0,67715.0,0.00461716]
[1729873391319,0.22116228,67719.0,67714.0,0.000824]
[1729873391320,0.1769252,67719.0,67714.0,0.000824]
[1729873391556,0.1719252,67715.0,67714.0,0.000824]
[1729873394340,0.1769252,67715.0,67714.0,0.000824]
[1729873396222,0.32742901,67715.0,67714.0,0.000824]
[1729873396424,0.47510601,67715.0,67714.0,0.000824]
[1729873397669,0.66040601,67715.0,67714.0,0.000824]
[1729873400384,0.6728085,67715.0,67714.0,0.000824]
[1729873400588,0.8108085,67715.0,67714.0,0.000824]
[1729873400784,0.8873085,67715.0,67714.0,0.000824]
[1729873401933,0.8643085,67715.0,67714.0,0.000824]
[1729873402386,0.8873085,67715.0,67714.0,0.000824]
[1729873402626,1.03781231,67715.0,67714.0,0.000824]
[1729873404451,1.03981231,67715.0,67714.0,0.000824]
[1729873404897,1.03781231,67715.0,67714.0,0.000824]
[1729873407063,1.03981231,67715.0,67714.0,0.000824]
[1729873407497,1.03781231,67715.0,67714.0,0.000824]
[1729873407693,1.03981231,67715.0,67714.0,0.000824]
[1729873407896,0.17251036,67710.0,67709.0,0.000825]
[1729873408118,0.87401701,67710.0,67709.0,0.000825]
[1729873408319,1.02452082,67710.0,67709.0,0.000825]
[1729873408520,1.02652082,67710.0,67709.0,0.000825]
[1729873409204,0.8762326,67710.0,67709.0,0.000825]
[1729873409408,0.8662326,67710.0,67709.0,0.000825]
[1729873409614,0.8762326,67710.0,67709.0,0.000825]
[1729873410235,0.8662326,67710.0,67709.0,0.000825]
[1729873410463,0.8762326,67710.0,67709.0,0.000825]
[1729873411061,0.94332885,67710.0,67709.0,0.000825]
[1729873411692,1.11243169,67710.0,67709.0,0.000825]
[1729873411961,1.11243169,67710.0,67693.0,0.000835]
[1729873411962,0.00982236,67694.0,67693.0,0.000835]
[1729873412167,0.66595201,67694.0,67693.0,0.000835]
[1729873412289,0.80413381,67694.0,67693.0,0.000835]
[1729873412512,0.88673381,67694.0,67693.0,0.000835]
[1729873412713,0.88473381,67694.0,67693.0,0.000835]
[1729873413769,0.88973381,67694.0,67693.0,0.000835]
[1729873413977,1.02273381,67694.0,67693.0,0.000835]
[1729873417232,1.03537909,67694.0,67693.0,0.000835]
[1729873417657,1.03737909,67694.0,67693.0,0.000835]
[1729873417915,1.03537909,67694.0,67693.0,0.000835]
[1729873418325,1.03737909,67694.0,67693.0,0.000835]
[1729873418545,1.03537909,67694.0,67693.0,0.000835]
[1729873418900,1.03737909,67694.0,67693.0,0.000835]
[1729873421470,0.89919729,67694.0,67693.0,0.000835]
[1729873422339,0.90119729,67694.0,67693.0,0.000835]
[1729873422753,0.89919729,67694.0,67693.0,0.000835]
[1729873422935,0.00982236,67684.0,67683.0,0.000835]
[1729873423135,0.47517401,67684.0,67683.0,0.000835]
[1729873424005,0.00982236,67684.0,67683.0,0.076535]
[1729873425485,0.00482236,67688.0,67683.0,0.076535]
[1729873425918,0.23098464,67694.0,67684.0,0.00295474]
[1729873426133,0.22116228,67687.0,67686.0,0.147741]
[1729873426342,0.00982236,67693.0,67686.0,0.00461929]
[1729873426553,0.00982236,67693.0,67692.0,0.147727]
[1729873426554,0.00482236,67693.0,67692.0,0.147727]
[1729873426761,0.005,67698.0,67691.0,0.295459]
[1729873427005,0.22116228,67693.0,67692.0,0.08225421]
[1729873427216,0.00482236,67700.0,67692.0,0.0793]
[1729873427447,0.22616228,67701.0,67700.0,0.14771]
[1729873427651,0.23098464,67701.0,67700.0,0.14771]
[1729873427858,0.005,67702.0,67698.0,0.295427]
[1729873428066,0.005,67702.0,67701.0,0.147708]
[1729873428681,0.005,67702.0,67699.0,0.147711]
[1729873428886,0.005,67700.0,67699.0,0.147711]
[1729873429978,0.005,67701.0,67700.0,0.14771]
[1729873430191,0.17096643,67710.0,67700.0,0.14771]
[1729873430192,0.22116228,67709.0,67700.0,0.00757238]
[1729873430398,0.22116228,67709.0,67701.0,0.08291855]
[1729873430602,0.22116228,67709.0,67702.0,0.00461855]
[1729873430816,0.22116228,67709.0,67703.0,0.00461855]
[1729873431028,0.22116228,67709.0,67701.0,0.0783]
[1729873431243,0.22116228,67709.0,67702.0,0.00461828]
[1729873431450,0.00886359,67710.0,67702.0,0.00295379]
[1729873431654,0.22116228,67709.0,67703.0,0.00461826]
[1729873431856,0.22116228,67709.0,67704.0,0.00461826]
[1729873432069,0.22116228,67709.0,67702.0,0.00295379]
[1729873432267,0.22116228,67709.0,67703.0,0.00461823]
[1729873432481,0.22116228,67709.0,67702.0,0.00295379]
[1729873432677,0.22116228,67709.0,67703.0,0.00461823]
[1729873432885,0.22116228,67709.0,67701.0,0.0783]
[1729873433298,0.22116228,67709.0,67703.0,0.147703]
[1729873433507,0.22116228,67709.0,67703.0,0.295407]
[1729873433927,0.22116228,67709.0,67705.0,0.443096]
[1729873434340,0.22116228,67709.0,67705.0,0.147697]
[1729873434822,0.00868595,67710.0,67708.0,0.147691]
[1729873435310,0.00868595,67710.0,67707.0,0.29539]
[1729873435311,0.00386359,67710.0,67709.0,0.14769]
[1729873435769,0.00386359,67710.0,67707.0,0.443083]
[1729873435988,0.00886359,67710.0,67708.0,0.147691]
[1729873436208,0.00886359,67710.0,67704.0,0.1925]
[1729873436420,0.00886359,67710.0,67709.0,0.14769]
[1729873437491,0.00386359,67710.0,67709.0,0.14769]
[1729873439129,0.00386359,67710.0,67707.0,0.0029536]
[1729873439335,0.00386359,67710.0,67709.0,0.14769]
[1729873440568,0.00386359,67710.0,67706.0,0.295394]
[1729873440778,0.00386359,67710.0,67707.0,0.2983436]
[1729873440985,0.00386359,67710.0,67709.0,0.14769]
[1729873441205,0.001648,67710.0,67709.0,0.15064341]
[1729873442662,0.001648,67710.0,67709.0,0.14769]
[1729873444070,0.001648,67710.0,67709.0,0.15064338]
[1729873446133,0.001648,67710.0,67709.0,0.55392767]
[1729873446374,0.001648,67710.0,67709.0,0.55097429]
[1729873446498,0.001648,67710.0,67709.0,0.55559155]
[1729873447116,0.001648,67710.0,67709.0,0.84779155]
[1729873447330,0.001648,67710.0,67709.0,0.85717859]
[1729873447592,0.001648,67710.0,67709.0,0.86817101]
[1729873448139,0.001648,67710.0,67709.0,0.85717859]
[1729873448344,0.001648,67710.0,67709.0,0.85517859]
[1729873448593,0.001648,67710.0,67709.0,0.85717859]
[1729873449237,0.001648,67710.0,67709.0,0.86817033]
[1729873450815,0.001648,67710.0,67709.0,0.86617033]
[1729873451223,0.001648,67710.0,67709.0,0.86817033]
[1729873455801,0.22116228,67735.0,67725.0,0.00017764]
[1729873456010,0.22116228,67735.0,67725.0,0.48039633]
[1729873456212,0.22116228,67735.0,67725.0,0.48244359]
[1729873456414,0.22116228,67735.0,67725.0,0.31534075]
[1729873456646,0.22116228,67735.0,67734.0,0.147636]
[1729873456851,0.22116228,67735.0,67734.0,0.15225326]
[1729873457270,0.00482236,67733.0,67724.0,0.295314]
[1729873457473,0.0798,67729.0,67725.0,0.00461659]
[1729873457671,0.0798,67729.0,67727.0,0.147651]
[1729873458126,0.0798,67729.0,67725.0,0.147654]
[1729873458339,0.0798,67729.0,67728.0,0.147649]
[1729873458546,0.0798,67729.0,67726.0,0.147652]
[1729873458966,0.0798,67729.0,67725.0,0.147655]
[1729873459173,0.0798,67729.0,67724.0,0.295313]
[1729873459386,0.0798,67729.0,67725.0,0.00461688]
[1729873459587,0.22116228,67728.0,67726.0,0.00461688]
[1729873459792,0.0798,67729.0,67726.0,0.147652]
[1729873459966,0.0798,67729.0,67724.0,0.295313]
[1729873460183,0.0798,67729.0,67728.0,0.147649]
[1729873461125,0.0798,67729.0,67728.0,0.15226574]
[1729873461348,0.30261028,67729.0,67728.0,0.00461674]
[1729873461554,0.08627036,67729.0,67722.0,0.295323]
[1729873461754,0.16710284,67726.0,67725.0,0.147654]
[1729873462540,0.08627036,67729.0,67728.0,0.147649]
[1729873462541,0.081448,67729.0,67728.0,0.147649]
[1729873462671,0.001648,67729.0,67728.0,0.15226579]
[1729873464549,0.001648,67729.0,67728.0,0.147649]
[1729873464831,0.001648,67729.0,67728.0,0.15226552]
[1729873465412,0.001648,67729.0,67728.0,0.15965193]
[1729873466040,0.00947036,67733.0,67728.0,0.01200293]
[1729873466251,0.22116228,67732.0,67731.0,0.147642]
[1729873466451,0.34391736,67729.0,67728.0,0.00461652]
[1729873466655,0.34391736,67729.0,67711.0,0.147684]
[1729873466656,0.005,67717.0,67711.0,0.147684]
[1729873466886,0.005,67717.0,67709.0,0.00738812]
[1729873466887,0.16710284,67710.0,67709.0,0.14769]
[1729873467103,0.16710284,67710.0,67709.0,0.15969656]
[1729873468386,0.16710284,67710.0,67709.0,0.15230793]
[1729873469210,0.0804,67719.0,67709.0,0.15230793]
[1729873469211,0.00447036,67723.0,67711.0,0.295372]
[1729873469443,0.00447036,67723.0,67722.0,0.147662]
[1729873469664,0.00447036,67723.0,67722.0,0.15227993]
[1729873469864,0.1822,67725.0,67722.0,0.00461793]
[1729873470075,0.1822,67725.0,67721.0,0.295328]
[1729873470076,0.00947036,67732.0,67731.0,0.147642]
[1729873470320,0.00447036,67731.0,67729.0,0.147645]
[1729873470549,0.16710284,67730.0,67729.0,0.147645]
[1729873470753,0.16710284,67730.0,67729.0,0.15226162]
[1729873471624,0.16710284,67730.0,67729.0,0.15964822]
[1729873472211,0.00447036,67731.0,67730.0,0.147645]
[1729873472456,0.00447036,67731.0,67730.0,0.15226158]
[1729873472617,0.00447036,67731.0,67730.0,0.15964806]
[1729873473560,0.00221483,67735.0,67734.0,0.147636]
[1729873473712,0.00221483,67735.0,67734.0,0.15225258]
[1729873474491,0.00668519,67735.0,67734.0,0.15963861]
[1729873474656,0.00668519,67735.0,67734.0,0.15963863]
[1729873474834,0.00221483,67735.0,67734.0,0.15963863]
[1729873476347,0.00221483,67735.0,67734.0,0.15963752]
[1729873478224,0.22116228,67745.0,67736.0,0.00552964]
[1729873478447,0.22116228,67745.0,67744.0,0.147614]
[1729873478649,0.21916228,67745.0,67744.0,0.15961552]
[1729873479060,0.22616228,67753.0,67752.0,0.147597]
[1729873479269,0.22116228,67753.0,67752.0,0.15221297]
[1729873479687,0.005,67755.0,67754.0,0.147592]
[1729873479886,0.005,67755.0,67754.0,0.15220797]
[1729873480067,0.00947036,67756.0,67755.0,0.14759]
[1729873480897,0.005,67756.0,67755.0,0.14759]
[1729873482482,0.00947036,67756.0,67755.0,0.14759]
[1729873486463,0.01111836,67756.0,67755.0,0.14759]
[1729873492323,0.00447036,67751.0,67750.0,0.147601]
[1729873492443,0.00447036,67751.0,67744.0,0.295227]
[1729873492648,0.00447036,67743.0,67741.0,0.14762]
[1729873492865,0.25067643,67746.0,67741.0,0.147621]
[1729873492866,0.17194679,67742.0,67741.0,0.147621]
[1729873494112,0.00447036,67731.0,67725.0,0.147655]
[1729873494246,0.5838506,67731.0,67730.0,0.148469]
[1729873494452,0.5838506,67731.0,67730.0,0.000824]
[1729873494666,0.5838506,67731.0,67730.0,0.148469]
[1729873495371,0.00429267,67731.0,67730.0,0.148469]
[1729873496690,0.005,67732.0,67730.0,0.000824]
[1729873496980,0.22116228,67736.0,67730.0,0.000824]
[1729873497185,0.005,67737.0,67736.0,0.147631]
[1729873497328,0.005,67741.0,67731.0,0.295285]
[1729873497530,0.22116228,67743.0,67732.0,0.0029525]
[1729873497531,0.22616228,67743.0,67732.0,0.0029525]
[1729873497729,0.005,67742.0,67741.0,0.147621]
[1729873497930,0.00929267,67742.0,67741.0,0.147621]
[1729873498131,0.005,67742.0,67741.0,0.147621]
[1729873498345,0.00429267,67747.0,67741.0,0.295242]
[1729873498542,0.00429267,67747.0,67746.0,0.14761]
[1729873500155,0.00429267,67741.0,67728.0,0.00070733]
[1729873500382,0.00429267,67741.0,67734.0,0.295268]
[1729873500383,0.00429267,67737.0,67734.0,0.295268]
[1729873500557,0.16747643,67734.0,67733.0,0.147638]
[1729873500790,0.16747643,67734.0,67730.0,0.296113]
[1729873500995,0.00429267,67732.0,67731.0,0.147642]
[1729873501400,0.00429267,67732.0,67730.0,0.296113]
[1729873501401,0.00429267,67731.0,67730.0,0.000824]
[1729873501817,0.15693467,67731.0,67730.0,0.000824]
[1729873502724,0.48843848,67731.0,67730.0,0.000824]
[1729873503135,0.56403848,67731.0,67730.0,0.000824]
[1729873503365,0.59203848,67731.0,67730.0,0.000824]
[1729873503612,0.69203848,67731.0,67730.0,0.000824]
[1729873504268,0.70203848,67731.0,67730.0,0.000824]
[1729873504397,0.95662981,67731.0,67730.0,0.000824]
[1729873505457,0.95662981,67731.0,67709.0,0.148513]
[1729873505458,0.005,67710.0,67709.0,0.148513]
[1729873505718,0.005,67710.0,67709.0,0.000824]
[1729873505719,0.15698067,67710.0,67709.0,0.000824]
[1729873506039,0.00929267,67710.0,67709.0,0.000824]
[1729873506651,0.00929267,67710.0,67709.0,0.148514]
[1729873506852,0.00929267,67710.0,67709.0,0.000824]
[1729873507924,0.15698067,67710.0,67709.0,0.000824]
[1729873508129,0.00929267,67710.0,67709.0,0.000824]
[1729873508348,0.00929267,67710.0,67709.0,0.148514]
[1729873511006,0.22116228,67716.0,67712.0,0.295368]
[1729873511240,0.22116228,67716.0,67715.0,0.147677]
[1729873511628,0.22116228,67724.0,67723.0,0.14766]
[1729873512443,0.22337714,67732.0,67731.0,0.147642]
[1729873512908,0.00221486,67732.0,67731.0,0.147642]
[1729873513114,0.00221486,67732.0,67731.0,0.15059446]
[1729873513971,0.22116228,67751.0,67742.0,0.147618]
[1729873513972,0.005,67745.0,67742.0,0.147618]
[1729873514180,0.00929267,67745.0,67742.0,0.147618]
[1729873514593,0.00929267,67745.0,67744.0,0.147614]
[1729873515231,0.00929267,67745.0,67743.0,0.295232]
[1729873515232,0.005,67749.0,67745.0,0.295224]
[1729873515466,0.22116228,67753.0,67752.0,0.147597]
[1729873515909,0.22116228,67753.0,67752.0,0.14669324]
[1729873516345,0.22116228,67753.0,67747.0,0.295213]
[1729873516346,0.22545495,67753.0,67747.0,0.295213]
[1729873516554,0.26123933,67756.0,67750.0,0.147601]
[1729873516555,0.00429267,67751.0,67750.0,0.147601]
[1729873517299,0.00429267,67751.0,67746.0,0.29522]
[1729873517513,0.00429267,67751.0,67748.0,0.147604]
[1729873517713,0.00429267,67751.0,67750.0,0.147601]
[1729873518354,0.00429267,67754.0,67740.0,0.00570733]
[1729873518556,0.00429267,67754.0,67740.0,0.15621114]
[1729873518820,0.22116228,67753.0,67740.0,0.15621114]
[1729873519029,0.22116228,67753.0,67752.0,0.147597]
[1729873519506,0.00429267,67754.0,67753.0,0.147594]
[1729873521888,0.005,67755.0,67754.0,0.147592]
[1729873522738,0.005,67755.0,67754.0,0.442777]
[1729873524505,0.005,67755.0,67754.0,0.295185]
[1729873524709,0.005,67755.0,67754.0,0.147592]
[1729873525785,0.005,67755.0,67754.0,0.442776]
[1729873526404,0.005,67755.0,67754.0,0.295184]
[1729873526660,0.005,67755.0,67754.0,0.442776]
[1729873526864,0.001648,67756.0,67755.0,0.14759]
[1729873527078,0.001648,67756.0,67755.0,0.15054139]
[1729873527312,0.001648,67756.0,67755.0,0.14759]
[1729873527723,0.001648,67756.0,67755.0,0.15054147]
[1729873528450,0.001648,67756.0,67755.0,0.14759]
[1729873530816,0.001648,67756.0,67753.0,0.147593]
[1729873531018,0.001648,67756.0,67755.0,0.14759]
[1729873532223,0.17335114,67756.0,67752.0,0.295194]
[1729873532427,0.17335114,67756.0,67737.0,0.0802]
[1729873532428,0.00429267,67750.0,67737.0,0.0802]
[1729873532624,0.16741047,67753.0,67747.0,0.51637728]
[1729873532823,0.001648,67756.0,67755.0,0.14759]
[1729873534185,0.001648,67756.0,67755.0,0.15054158]
[1729873534396,0.001648,67756.0,67755.0,0.14759]
[1729873535230,0.001648,67756.0,67755.0,0.31795219]
[1729873535442,0.001648,67756.0,67755.0,0.14759]
[1729873538127,0.001648,67756.0,67746.0,0.295219]
[1729873538330,0.001648,67756.0,67755.0,0.14759]
[1729873538534,0.001648,67756.0,67754.0,0.147592]
[1729873538716,0.001648,67756.0,67748.0,0.295211]
[1729873539088,0.001648,67756.0,67750.0,0.147601]
[1729873539089,0.00429267,67751.0,67750.0,0.147601]
[1729873539471,0.00429267,67751.0,67746.0,0.29522]
[1729873539675,0.00429267,67751.0,67750.0,0.147601]
[1729873539881,0.00429267,67748.0,67744.0,0.295225]
[1729873540087,0.00429267,67748.0,67746.0,0.147609]
[1729873540288,0.00429267,67748.0,67747.0,0.15222322]
[1729873540944,0.00429267,67753.0,67749.0,0.295206]
[1729873541138,0.00429267,67753.0,67752.0,0.147597]
[1729873542862,0.00429267,67753.0,67744.0,0.00738437]
[1729873543060,0.00429267,67753.0,67752.0,0.147597]
[1729873545291,0.00429267,67753.0,67752.0,0.00461524]
[1729873545675,0.00429267,67753.0,67752.0,0.15221224]
[1729873546287,0.00429267,67753.0,67752.0,0.15303624]
[1729873547033,0.15688667,67753.0,67752.0,0.000824]
[1729873548662,0.76613295,67753.0,67752.0,0.000824]
[1729873549310,0.79413295,67753.0,67752.0,0.000824]
[1729873551504,0.79612923,67753.0,67752.0,0.000824]
[1729873551711,0.79412923,67753.0,67752.0,0.000824]
[1729873552214,0.79612923,67753.0,67752.0,0.000824]
[1729873552449,0.82795124,67753.0,67752.0,0.000824]
[1729873552651,0.87342694,67753.0,67752.0,0.000824]
[1729873552825,0.84960493,67753.0,67752.0,0.000824]
[1729873553817,0.85160493,67753.0,67752.0,0.000824]
[1729873554020,0.84960493,67753.0,67752.0,0.000824]
[1729873555024,0.85160493,67753.0,67752.0,0.000824]
[1729873555654,0.84960493,67753.0,67752.0,0.000824]
[1729873557419,0.80577723,67753.0,67752.0,0.000824]
[1729873558018,0.80777723,67753.0,67752.0,0.000824]
[1729873558396,0.45130867,67743.0,67742.0,0.000824]
[1729873558618,1.03663342,67743.0,67742.0,0.000824]
[1729873558815,1.06025431,67743.0,67742.0,0.000824]
[1729873559473,1.05633724,67743.0,67742.0,0.000824]
[1729873559880,1.09993509,67743.0,67742.0,0.000824]
[1729873560077,1.20684105,67743.0,67742.0,0.000824]
[1729873560677,1.2504389,67743.0,67742.0,0.000824]
[1729873561105,1.19322016,67743.0,67742.0,0.000824]
[1729873561308,1.20682921,67743.0,67742.0,0.000824]
[1729873561685,1.20482921,67743.0,67742.0,0.000824]
[1729873561892,0.60122807,67731.0,67730.0,0.000824]
[1729873562068,0.75173188,67731.0,67730.0,0.000824]
[1729873562911,0.0003756,67711.0,67710.0,0.00461752]
[1729873563119,0.005,67713.0,67709.0,0.000824]
[1729873563120,0.0003756,67710.0,67709.0,0.000824]
[1729873564663,0.15587941,67710.0,67709.0,0.000824]
[1729873564866,0.30356741,67710.0,67709.0,0.000824]
[1729873565492,0.15587941,67710.0,67709.0,0.000824]
[1729873565663,0.30356741,67710.0,67709.0,0.000824]
[1729873566850,0.15587941,67710.0,67709.0,0.000824]
[1729873567049,0.30356741,67710.0,67709.0,0.000824]
[1729873568243,0.15587941,67710.0,67709.0,0.000824]
[1729873568901,0.41097403,67710.0,67709.0,0.000824]
[1729873570162,0.30356741,67710.0,67709.0,0.000824]
[1729873570374,0.15587941,67710.0,67709.0,0.000824]
[1729873570579,0.30356741,67710.0,67709.0,0.000824]
[1729873570787,0.15587941,67710.0,67709.0,0.000824]
[1729873571245,0.0053756,67710.0,67709.0,0.000824]
[1729873572240,0.00721519,67721.0,67709.0,0.0037776]
[1729873572241,0.005,67715.0,67709.0,0.0037776]
[1729873572435,0.0053756,67716.0,67715.0,0.147677]
[1729873572725,0.00221519,67721.0,67720.0,0.147666]
[1729873572931,0.00221519,67721.0,67720.0,0.223166]
[1729873573556,0.00221519,67721.0,67720.0,0.41791914]
[1729873573766,0.00221519,67721.0,67720.0,0.414966]
[1729873574027,0.005,67732.0,67720.0,0.414966]
[1729873574028,0.005,67732.0,67731.0,0.147642]
[1729873574237,0.0003756,67734.0,67733.0,0.147638]
[1729873574238,0.0053756,67734.0,67733.0,0.147638]
[1729873574651,0.005,67734.0,67722.0,0.0046244]
[1729873574862,0.005,67734.0,67733.0,0.147638]
[1729873575071,0.005,67740.0,67739.0,0.147625]
[1729873575281,0.0003756,67740.0,67739.0,0.147625]
[1729873575522,0.0053756,67740.0,67739.0,0.147625]
[1729873575940,0.22116228,67744.0,67736.0,0.0752]
[1729873575941,0.005,67742.0,67736.0,0.0752]
[1729873576154,0.0003756,67745.0,67742.0,0.295237]
[1729873576364,0.0003756,67745.0,67742.0,0.442855]
[1729873576365,0.22116228,67743.0,67742.0,0.442855]
[1729873576587,0.005,67744.0,67743.0,0.147616]
[1729873577228,0.005,67744.0,67740.0,0.295246]
[1729873577455,0.001648,67756.0,67740.0,0.295246]
[1729873577456,0.005,67750.0,67749.0,0.147603]
[1729873577663,0.22116228,67750.0,67749.0,0.147603]
[1729873578095,0.001648,67753.0,67752.0,0.147597]
[1729873578728,0.001648,67753.0,67752.0,0.15054886]
[1729873578942,0.001648,67753.0,67752.0,0.23506362]
[1729873579176,0.001648,67753.0,67752.0,0.23211176]
[1729873579627,0.001648,67753.0,67752.0,0.227497]
[1729873579840,0.001648,67753.0,67752.0,0.23211156]
[1729873581238,0.001648,67753.0,67752.0,0.2350631]
[1729873581469,0.001648,67753.0,67752.0,0.23211156]
[1729873582340,0.001648,67753.0,67752.0,0.23506296]
[1729873583671,0.001648,67753.0,67752.0,0.56260164]
[1729873584057,0.001648,67753.0,67752.0,0.66165024]
[1729873584241,0.001648,67753.0,67752.0,0.67262517]
[1729873584392,0.001648,67753.0,67752.0,0.68000062]
[1729873584820,0.001648,67753.0,67752.0,0.67858046]
[1729873585024,0.001648,67753.0,67752.0,0.70158046]
[1729873585358,0.001648,67753.0,67752.0,0.69061112]
[1729873585573,0.001648,67756.0,67755.0,0.1592144]
[1729873585781,0.001648,67756.0,67755.0,0.63978284]
[1729873585992,0.001648,67756.0,67755.0,0.6368319]
[1729873586199,0.001648,67756.0,67755.0,0.6138319]
[1729873586807,0.001648,67756.0,67755.0,0.61383151]
[1729873590377,0.001648,67756.0,67755.0,0.6118316]
[1729873590578,0.001648,67756.0,67755.0,0.6138316]
[1729873591533,0.001648,67756.0,67755.0,0.6118316]
[1729873592535,0.001648,67756.0,67755.0,0.4886316]
[1729873592761,0.001648,67756.0,67755.0,0.4906316]
[1729873593106,0.001648,67756.0,67755.0,0.4886316]
[1729873593297,0.001648,67756.0,67755.0,0.48863202]
[1729873593702,0.001648,67756.0,67755.0,0.48400762]
[1729873593893,0.001648,67756.0,67755.0,0.47900762]
[1729873594042,0.001648,67756.0,67755.0,0.48863202]
[1729873596426,0.001648,67756.0,67755.0,0.40270762]
[1729873596631,0.001648,67756.0,67755.0,0.41233202]
[1729873597195,0.001648,67756.0,67755.0,0.49503202]
[1729873597599,0.001648,67756.0,67755.0,0.49303154]
[1729873598937,0.001648,67756.0,67755.0,0.49503154]
[1729873599143,0.001648,67756.0,67755.0,0.49303154]
[1729873600316,0.001648,67756.0,67755.0,0.51303154]
[1729873601212,0.001648,67756.0,67755.0,0.51303197]
[1729873601710,0.001648,67756.0,67755.0,0.52041398]
[1729873602153,0.001648,67756.0,67755.0,0.41008958]
[1729873602365,0.001648,67756.0,67755.0,0.01199577]
[1729873602898,0.001648,67756.0,67747.0,0.295211]
[1729873603103,0.0003756,67750.0,67748.0,0.0046148]
[1729873603308,0.1972756,67750.0,67749.0,0.0046148]
[1729873604693,0.2746756,67750.0,67749.0,0.0046148]
[1729873605315,0.2746756,67750.0,67749.0,0.01199896]
[1729873605528,0.2746756,67750.0,67749.0,0.0046148]
[1729873606516,0.0003756,67752.0,67749.0,0.01199889]
[1729873606702,0.0003756,67752.0,67750.0,0.0046148]
[1729873606899,0.0003756,67752.0,67747.0,0.295212]
[1729873606900,0.0003756,67752.0,67751.0,0.0046148]
[1729873607777,0.0003756,67752.0,67751.0,0.01199881]
[1729873608023,0.0003756,67752.0,67751.0,0.0046148]
[1729873608276,0.0003756,67752.0,67747.0,0.147605]
[1729873608449,0.0003756,67752.0,67748.0,0.01199929]
[1729873608706,0.0003756,67752.0,67749.0,0.01199929]
[1729873608945,0.0003756,67752.0,67750.0,0.00461511]
[1729873609163,0.0003756,67752.0,67751.0,0.00461511]
[1729873610570,0.16778607,67752.0,67751.0,0.00461511]
[1729873611910,0.0003756,67752.0,67751.0,0.00461511]
[1729873614529,0.0003756,67752.0,67741.0,0.295241]
[1729873614801,0.16741047,67744.0,67742.0,0.01199924]
[1729873614931,0.16741047,67744.0,67743.0,0.01199924]
[1729873616173,0.0003756,67745.0,67743.0,0.15961524]
[1729873616370,0.0003756,67745.0,67744.0,0.01199924]
[1729873617253,0.2773756,67745.0,67744.0,0.00461509]
[1729873617452,0.2773756,67745.0,67730.0,0.296111]
[1729873617453,0.005,67744.0,67730.0,0.000824]
[1729873617667,0.005,67744.0,67735.0,0.147632]
[1729873617668,0.16741047,67740.0,67735.0,0.147632]
[1729873617864,0.16741047,67740.0,67736.0,0.01200056]
[1729873618039,0.16741047,67740.0,67737.0,0.0046156]
[1729873618236,0.16741047,67740.0,67733.0,0.295273]
[1729873618438,0.16741047,67740.0,67735.0,0.147633]
[1729873618641,0.0003756,67733.0,67730.0,0.000824]
[1729873618863,0.16741047,67731.0,67730.0,0.148469]
[1729873619068,0.0003756,67733.0,67730.0,0.15308502]
[1729873619268,0.0003756,67733.0,67730.0,0.15308518]
[1729873619512,0.0003756,67733.0,67731.0,0.00461618]
[1729873619685,0.0003756,67733.0,67730.0,0.148469]
[1729873619889,0.0003756,67733.0,67730.0,0.148468]
[1729873620091,0.0003756,67733.0,67730.0,0.000824]
[1729873620299,0.44508607,67731.0,67730.0,0.000824]
[1729873622709,0.0003756,67731.0,67730.0,0.000824]